bitfinex/quotes_SOLUSD_20250101
["timestamp","ask_amount","ask_price","bid_price","bid_amount"]
[1735719379951,24.263284,190.78,190.66,31.40983496]
[1735719380555,24.263284,190.78,190.67,2.61643759]
[1735719381257,24.263284,190.78,190.68,2.61643759]
[1735719381258,20.0,190.75,190.68,2.61643759]
[1735719381460,30.284784,190.74,190.68,2.61643759]
[1735719382046,30.284784,190.74,190.64,2.61643759]
[1735719382783,30.284784,190.74,190.65,2.61643759]
[1735719383354,30.284784,190.74,190.63,10.62350775]
[1735719384561,30.284784,190.74,190.64,2.61962511]
[1735719385163,30.284784,190.74,190.65,2.61962511]
[1735719385539,0.4864,190.73,190.65,2.61962511]
[1735719386035,0.4864,190.73,190.61,70.61015918]
[1735719386965,0.4864,190.73,190.62,2.61902646]
[1735719387462,20.0,190.71,190.62,2.61902646]
[1735719387768,20.0,190.71,190.63,2.61902646]
[1735719388161,20.0,190.71,190.61,11.41015918]
[1735719388666,20.0,190.71,190.62,2.61941233]
[1735719389267,0.4864,190.73,190.61,11.41015918]
[1735719389751,20.0,190.71,190.61,11.41015918]
[1735719390564,20.0,190.71,190.62,2.61785305]
[1735719392274,6.5617,190.69,190.62,2.61785305]
[1735719392651,7.0481,190.69,190.58,70.61026707]
[1735719393470,7.0481,190.69,190.59,2.61697353]
[1735719394067,7.0481,190.69,190.58,70.61026707]
[1735719396452,20.0,190.66,190.58,59.2]
[1735719396859,6.5617,190.65,190.55,10.62350775]
[1735719397982,6.5617,190.65,190.54,82.94380775]
[1735719398179,6.5617,190.65,190.54,72.3203]
[1735719398398,6.5617,190.65,190.54,82.94380775]
[1735719399189,6.5617,190.65,190.54,72.3203]
[1735719400794,0.4864,190.64,190.54,72.3203]
[1735719401293,0.4864,190.64,190.54,83.73080291]
[1735719404689,0.4864,190.64,190.54,24.53080291]
[1735719406096,0.4864,190.64,190.55,10.62350775]
[1735719406395,6.5617,190.65,190.57,10.62350775]
[1735719406904,6.5617,190.65,190.56,11.41044185]
[1735719407369,6.5617,190.65,190.55,10.62350775]
[1735719407563,6.5617,190.65,190.55,69.82350775]
[1735719408767,6.5617,190.65,190.55,59.2]
[1735719409007,6.5617,190.65,190.55,69.82350775]
[1735719410100,6.5617,190.65,190.56,11.41047369]
[1735719410807,6.5617,190.65,190.57,10.62350775]
[1735719411611,6.5617,190.65,190.56,70.61047369]
[1735719415607,6.5617,190.65,190.56,59.98696594]
[1735719421716,6.5617,190.65,190.56,59.2]
[1735719422718,6.5617,190.65,190.53,70.61041643]
[1735719424025,20.0,190.62,190.53,59.98690868]
[1735719424321,20.4864,190.62,190.53,59.2]
[1735719424823,20.4864,190.62,190.5,69.82350775]
[1735719425418,20.4864,190.62,190.51,0.78712276]
[1735719425886,20.4864,190.62,190.51,3.40263442]
[1735719426290,20.4864,190.62,190.51,14.02614217]
[1735719426491,20.4864,190.62,190.52,10.62350775]
[1735719428912,20.4864,190.62,190.53,11.41056115]
[1735719429111,20.4864,190.62,190.54,69.82350775]
[1735719429429,0.4864,190.62,190.55,11.41044017]
[1735719429926,20.0,190.62,190.55,11.41044017]
[1735719430220,20.0,190.62,190.55,0.78693242]
[1735719432623,20.0,190.62,190.55,11.41044017]
[1735719433002,20.0,190.62,190.55,0.78693242]
[1735719433317,20.0,190.62,190.55,3.40619934]
[1735719433819,6.5617,190.65,190.57,10.62350775]
[1735719434026,6.5341,190.7,190.59,10.62350775]
[1735719434210,6.5341,190.7,190.61,10.62350775]
[1735719434411,6.5341,190.7,190.62,11.41014111]
[1735719437724,6.5341,190.7,190.62,70.61014111]
[1735719438521,6.5341,190.75,190.64,10.62350775]
[1735719438717,20.0,190.72,190.65,0.78648141]
[1735719443321,20.0,190.72,190.65,11.40998916]
[1735719443722,20.0,190.72,190.65,70.60998916]
[1735719445533,20.0,190.72,190.65,59.98648141]
[1735719447636,6.5341,190.75,190.65,59.98648141]
[1735719448231,20.0,190.72,190.65,59.98648141]
[1735719448433,20.0,190.72,190.65,70.60998916]
[1735719448738,6.5341,190.75,190.66,69.82350775]
[1735719449036,6.5341,190.75,190.68,10.62350775]
[1735719449251,6.5341,190.75,190.69,0.78628937]
[1735719449609,13.19275415,190.8,190.69,70.60979712]
[1735719449928,6.8566,190.8,190.7,10.62350775]
[1735719450237,6.8566,190.8,190.71,0.786234]
[1735719452735,6.8566,190.8,190.71,59.986234]
[1735719453336,6.8566,190.8,190.71,70.60974175]
[1735719456437,6.8566,190.8,190.72,69.82350775]
[1735719456643,6.8566,190.8,190.73,70.60964522]
[1735719456644,6.3702,190.8,190.73,70.60964522]
[1735719457138,0.4864,190.84,190.75,10.62350775]
[1735719457320,0.4864,190.84,190.76,0.78602581]
[1735719461734,24.263284,190.84,190.74,59.2]
[1735719462529,0.4864,190.84,190.75,0.78616669]
[1735719464744,0.4864,190.84,190.75,59.98616669]
[1735719465351,24.263284,190.84,190.75,59.2]
[1735719467944,24.263284,190.84,190.72,59.2]
[1735719470070,23.776884,190.8,190.72,59.2]
[1735719470271,23.776884,190.8,190.7,59.2]
[1735719470729,23.776884,190.8,190.7,59.98630887]
[1735719471231,23.776884,190.8,190.7,70.60981662]
[1735719479464,20.0,190.81,190.72,10.62350775]
[1735719479665,20.0,190.81,190.72,11.40973772]
[1735719480562,20.0,190.82,190.72,11.40973772]
[1735719480755,20.0,190.82,190.73,10.62350775]
[1735719482640,20.0,190.82,190.74,69.82350775]
[1735719483042,20.0,190.82,190.74,59.2]
[1735719490774,20.0,190.82,190.74,59.98617237]
[1735719497066,20.0,190.81,190.74,59.2]
[1735719497858,20.0,190.81,190.72,0.78625643]
[1735719500876,20.0,190.81,190.72,59.98625643]
[1735719505569,8.29373986,190.88,190.75,10.62350775]
[1735719505775,8.29373986,190.88,190.75,11.40960352]
[1735719505975,20.0,190.85,190.76,10.62350775]
[1735719506171,20.0,190.85,190.77,0.78602992]
[1735719506569,20.0,190.86,190.77,0.78602992]
[1735719507555,43.776884,190.86,190.77,0.78602992]
[1735719508591,19.3313,190.9,190.77,70.60953767]
[1735719508785,20.0,190.87,190.78,10.62350775]
[1735719508959,20.0,190.87,190.79,59.98595695]
[1735719511079,20.0,190.87,190.79,59.2]
[1735719514476,20.0,190.87,190.79,60.8489]
[1735719515586,23.776884,190.86,190.79,59.2]
[1735719515990,23.776884,190.86,190.75,69.82350775]
[1735719517270,23.776884,190.86,190.75,70.60965258]
[1735719517597,20.0,190.83,190.75,70.60965258]
[1735719518872,20.0,190.83,190.75,59.98614483]
[1735719519197,20.0,190.83,190.75,59.2]
[1735719519398,20.0,190.83,190.74,71.47240775]
[1735719519599,20.0,190.83,190.74,60.8489]
[1735719520400,20.0,190.81,190.74,60.8489]
[1735719521106,20.0,190.81,190.74,1.6489]
[1735719521905,20.0,190.81,190.72,59.2]
[1735719522701,23.776884,190.8,190.71,59.2]
[1735719523001,20.0,190.77,190.7,60.8489]
[1735719532399,20.0,190.79,190.7,60.8489]
[1735719532600,20.0,190.75,190.67,64.16968441]
[1735719532807,20.0,190.75,190.67,59.2]
[1735719533311,20.0,190.75,190.66,71.43810775]
[1735719533691,20.0,190.75,190.66,60.8146]
[1735719534092,20.0,190.71,190.66,1.6146]
[1735719537797,20.0,190.71,190.66,12.23810775]
[1735719538217,6.0804,190.78,190.67,10.62350775]
[1735719538790,20.0,190.75,190.67,10.62350775]
[1735719539396,29.857284,190.78,190.67,10.62350775]
[1735719539597,20.0,190.75,190.67,10.62350775]
[1735719539802,6.0804,190.78,190.67,10.62350775]
[1735719539998,20.0,190.75,190.67,10.62350775]
[1735719542024,20.0,190.75,190.66,71.43810775]
[1735719542511,23.776884,190.74,190.66,60.8146]
[1735719545932,23.776884,190.74,190.66,1.6146]
[1735719549904,20.0,190.74,190.66,1.6146]
[1735719550109,20.0,190.73,190.66,1.6146]
[1735719551526,23.776884,190.76,190.66,1.6146]
[1735719554644,23.776884,190.76,190.66,12.23810775]
[1735719555842,23.776884,190.76,190.66,1.6146]
[1735719557332,23.776884,190.76,190.66,12.23810775]
[1735719557534,1.9470602,190.78,190.68,10.62350775]
[1735719557741,1.9470602,190.78,190.69,10.62350775]
[1735719557908,20.0,190.77,190.69,10.62350775]
[1735719561520,20.0,190.77,190.68,6.1379]
[1735719563136,20.0,190.77,190.68,16.76140775]
[1735719563820,20.0,190.8,190.71,1.5219]
[1735719564120,20.0,190.8,190.71,12.14540775]
[1735719564535,23.776884,190.79,190.71,12.14540775]
[1735719565440,25.47006202,190.83,190.72,10.62350775]
[1735719565820,20.0,190.79,190.72,10.62350775]
[1735719567839,25.47006202,190.83,190.72,10.62350775]
[1735719568141,19.46136202,190.83,190.72,10.62350775]
[1735719568646,20.0,190.8,190.72,10.62350775]
[1735719569446,6.36056202,190.83,190.73,11.40974255]
[1735719569839,20.0,190.8,190.73,11.40974255]
[1735719570028,20.0,190.8,190.74,18.55560775]
[1735719570642,6.36056202,190.83,190.74,18.55560775]
[1735719570822,13.0982,190.87,190.75,69.82350775]
[1735719571021,19.45876202,190.87,190.76,10.62350775]
[1735719571241,23.776884,190.86,190.76,10.62350775]
[1735719571740,20.0,190.83,190.76,10.62350775]
[1735719573442,20.0,190.83,190.75,59.2]
[1735719579043,20.0,190.83,190.74,67.1321]
[1735719579438,20.0,190.83,190.74,77.75560775]
[1735719580256,20.0,190.83,190.74,67.1321]
[1735719592881,20.0,190.82,190.74,67.1321]
[1735719593377,20.0,190.8,190.74,67.1321]
[1735719594085,20.0,190.8,190.74,7.9321]
[1735719595072,20.0,190.8,190.74,1.5405]
[1735719602278,20.0,190.84,190.74,1.5405]
[1735719602975,20.42444104,190.84,190.74,1.5405]
[1735719603184,20.0,190.82,190.74,1.5405]
[1735719604875,20.0,190.82,190.75,10.62350775]
[1735719605185,20.0,190.82,190.77,1.6538]
[1735719618990,20.0,190.84,190.77,1.6538]
[1735719621188,6.36056202,190.89,190.79,10.62350775]
[1735719621374,13.0956,190.91,190.82,6.3593]
[1735719621580,20.0,190.88,190.82,6.3593]
[1735719630288,20.0,190.86,190.81,1.659]
[1735719638402,20.0,190.82,190.74,1.5328]
[1735719639587,13.0973,190.88,190.75,10.62350775]
[1735719639983,20.0,190.84,190.76,10.62350775]
[1735719641299,20.0,190.84,190.75,10.62350775]
[1735719642995,20.0,190.84,190.74,72.14252425]
[1735719643391,20.0,190.84,190.74,61.5190165]
[1735719643573,20.0,190.84,190.74,72.14252425]
[1735719644496,20.0,190.84,190.75,10.62350775]
[1735719644697,19.92140055,190.84,190.75,10.62350775]
[1735719645097,19.92140055,190.84,190.75,69.82350775]
[1735719653011,19.92140055,190.84,190.76,10.62350775]
[1735719654811,19.92140055,190.84,190.77,10.62350775]
[1735719656411,13.0973,190.88,190.79,10.62350775]
[1735719656914,20.0,190.85,190.79,10.62350775]
[1735719659013,20.0,190.85,190.78,10.62350775]
[1735719662121,20.0,190.85,190.77,10.62350775]
[1735719663125,20.0,190.85,190.77,69.82350775]
[1735719664028,20.0,190.85,190.78,10.62350775]
[1735719668944,25.0570243,190.91,190.8,10.62350775]
[1735719669277,11.9617243,190.91,190.82,10.62350775]
[1735719669527,20.0,190.88,190.82,10.62350775]
[1735719670099,20.0,190.88,190.81,10.62350775]
[1735719678258,20.0,190.88,190.8,59.98588825]
[1735719679369,20.0,190.88,190.8,70.609396]
[1735719683179,20.0,190.88,190.8,59.2]
[1735719684177,20.0,190.88,190.76,82.92870775]
[1735719684975,20.0,190.88,190.76,69.82350775]
[1735719686178,20.0,190.88,190.77,10.62350775]
[1735719687360,20.0,190.88,190.77,69.82350775]
[1735719688063,20.0,190.83,190.75,59.2]
[1735719690056,20.0,190.82,190.75,59.2]
[1735719690262,20.0,190.82,190.71,59.98621257]
[1735719690459,20.0,190.82,190.72,10.62350775]
[1735719691040,23.776884,190.81,190.69,61.57892459]
[1735719691240,6.5508,190.8,190.7,10.62350775]
[1735719691453,6.5508,190.8,190.69,61.57892459]
[1735719691454,6.5508,190.8,190.69,71.41610775]
[1735719691645,23.776884,190.79,190.69,12.21610775]
[1735719695264,23.776884,190.79,190.69,1.5926]
[1735719695467,23.776884,190.79,190.68,10.62350775]
[1735719696945,20.0,190.76,190.68,10.62350775]
[1735719699368,20.0,190.76,190.67,69.82350775]
[1735719699369,20.4864,190.76,190.67,69.82350775]
[1735719702172,20.4864,190.76,190.67,10.62350775]
[1735719702548,6.5508,190.75,190.66,10.62350775]
[1735719704974,6.5508,190.75,190.67,10.62350775]
[1735719707654,6.5508,190.75,190.66,10.62350775]
[1735719707853,20.0,190.72,190.66,10.62350775]
[1735719708262,6.5508,190.75,190.67,10.62350775]
[1735719710875,20.0,190.72,190.67,10.62350775]
[1735719712071,20.0,190.72,190.66,10.62350775]
[1735719712256,20.0,190.72,190.65,10.62350775]
[1735719713853,20.0,190.72,190.64,72.20261497]
[1735719714571,20.0,190.72,190.64,13.00261497]
[1735719714776,20.0,190.72,190.64,12.21610775]
[1735719718883,20.0,190.72,190.64,10.62350775]
[1735719719682,20.0,190.72,190.6,74.73493559]
[1735719719878,20.0,190.72,190.61,10.62350775]
[1735719720082,20.0,190.72,190.6,74.73493559]
[1735719720256,20.0,190.72,190.61,10.62350775]
[1735719721485,20.0,190.67,190.57,59.2]
[1735719721985,20.0,190.66,190.57,59.2]
[1735719722782,20.0,190.66,190.56,69.82350775]
[1735719722987,20.0,190.66,190.56,10.62350775]
[1735719724590,20.0,190.67,190.59,10.62350775]
[1735719726166,20.0,190.67,190.6,11.41032058]
[1735719727285,20.0,190.67,190.61,10.62350775]
[1735719731079,20.0,190.67,190.6,59.98681283]
[1735719731380,20.0,190.67,190.6,70.61032058]
[1735719731689,20.0,190.67,190.6,59.2]
[1735719732390,20.0,190.67,190.59,10.62350775]
[1735719733598,20.0,190.67,190.61,10.62350775]
[1735719733780,20.0,190.67,190.6,10.62350775]
[1735719734393,20.0,190.67,190.59,10.62350775]
[1735719735390,20.0,190.67,190.59,69.82350775]
[1735719735596,20.0,190.67,190.59,59.2]
[1735719735903,20.0,190.67,190.57,10.62350775]
[1735719737293,20.0,190.67,190.56,11.41040828]
[1735719737499,20.0,190.67,190.56,10.62350775]
[1735719738308,20.0,190.67,190.56,11.41045628]
[1735719738689,20.0,190.67,190.57,10.62350775]
[1735719739099,20.0,190.67,190.58,10.62350775]
[1735719739341,20.0,190.67,190.59,10.62350775]
[1735719742813,20.0,190.67,190.58,10.62350775]
[1735719743908,20.0,190.67,190.57,10.62350775]
[1735719744106,23.776884,190.69,190.57,10.62350775]
[1735719744310,23.776884,190.69,190.57,69.82350775]
[1735719744497,23.776884,190.69,190.58,10.62350775]
[1735719746914,20.0,190.67,190.58,11.41035471]
[1735719747292,20.0,190.67,190.58,70.61035471]
[1735719748420,20.0,190.67,190.59,10.62350775]
[1735719750306,20.0,190.67,190.59,69.82350775]
[1735719754135,7.0937,190.7,190.61,10.62350775]
[1735719757520,7.0937,190.7,190.6,59.2]
[1735719757730,20.0,190.67,190.6,59.2]
[1735719762428,20.0,190.67,190.58,69.82350775]
[1735719765241,20.0,190.67,190.59,10.62350775]
[1735719765546,7.0937,190.7,190.6,10.62350775]
[1735719766623,7.0937,190.7,190.61,10.62350775]
[1735719766823,6.6073,190.7,190.64,10.62350775]
[1735719768546,6.9009,190.74,190.64,69.82350775]
[1735719769544,6.9009,190.74,190.65,10.62350775]
[1735719770824,6.9009,190.74,190.66,10.62350775]
[1735719772524,6.9009,190.74,190.66,11.40999041]
[1735719774449,6.9009,190.74,190.66,70.60999041]
[1735719776644,6.9009,190.74,190.66,59.98648266]
[1735719789533,6.4145,190.74,190.66,59.98648266]
[1735719789732,6.4145,190.74,190.66,70.60999041]
[1735719795263,6.4145,190.74,190.66,59.98648266]
[1735719795473,6.4145,190.74,190.66,0.78648266]
[1735719799954,6.4145,190.74,190.65,59.2]
[1735719810467,6.4145,190.74,190.63,11.41012192]
[1735719813379,6.4145,190.74,190.63,70.61012192]
[1735719815083,6.36861591,190.74,190.63,70.61012192]
[1735719824284,6.36861591,190.74,190.63,59.98661417]
[1735719825261,6.36861591,190.74,190.65,13.113]
[1735719825467,6.36861591,190.74,190.66,11.40998194]
[1735719826685,6.36861591,190.74,190.66,0.78647419]
[1735719828584,6.36861591,190.74,190.66,59.98647419]
[1735719840494,0.4864,190.73,190.65,59.2]
[1735719840994,0.4864,190.73,190.66,0.78654753]
[1735719846495,0.4864,190.73,190.66,59.98654753]
[1735719847076,0.4864,190.73,190.66,59.2]
[1735719849500,0.4864,190.73,190.64,59.98653104]
[1735719868656,6.36861591,190.74,190.67,10.62350775]
[1735719868844,6.36861591,190.74,190.68,70.60993157]
[1735719869038,11.34068327,190.78,190.69,69.82350775]
[1735719869235,6.5225,190.78,190.7,0.78635764]
[1735719870942,6.5225,190.78,190.7,11.40986539]
[1735719871739,6.5225,190.83,190.75,10.62350775]
[1735719872039,6.0361,190.83,190.78,69.82350775]
[1735719872336,12.24053066,190.84,190.79,0.7859731]
[1735719872514,8.29373986,190.84,190.79,0.7859731]
[1735719872717,6.0361,190.87,190.79,0.7859731]
[1735719880344,6.0361,190.87,190.78,59.2]
[1735719882646,6.0361,190.87,190.75,70.60957731]
[1735719883645,20.0,190.84,190.75,59.98606956]
[1735719883951,20.0,190.84,190.75,59.2]
[1735719885534,20.0,190.84,190.73,59.98611546]
[1735719886253,23.776884,190.83,190.73,0.78611546]
[1735719886453,6.9212,190.82,190.69,75.57939577]
[1735719886640,6.9212,190.82,190.69,70.60971136]
[1735719887452,23.776884,190.81,190.69,70.60971136]
[1735719890755,20.0,190.78,190.69,59.98620361]
[1735719893334,23.776884,190.81,190.69,59.98620361]
[1735719893539,23.776884,190.81,190.69,59.2]
[1735719894560,6.4348,190.81,190.7,20.0]
[1735719894862,23.776884,190.8,190.7,20.0]
[1735719897562,20.0,190.78,190.68,69.82350775]
[1735719897761,20.0,190.78,190.68,70.60992838]
[1735719898664,20.0,190.78,190.68,69.82350775]
[1735719899660,20.0,190.78,190.68,59.2]
[1735719899868,20.0,190.78,190.68,69.82350775]
[1735719900769,20.0,190.78,190.69,0.78640956]
[1735719901466,20.0,190.78,190.7,10.62350775]
[1735719901665,23.776884,190.8,190.7,10.62350775]
[1735719902165,20.0,190.78,190.7,10.62350775]
[1735719902373,20.0,190.78,190.71,11.4098333]
[1735719903572,20.0,190.78,190.71,70.6098333]
[1735719905888,20.0,190.78,190.72,69.82350775]
[1735719906167,20.0,190.78,190.72,70.60976102]
[1735719907052,20.0,190.78,190.72,69.82350775]
[1735719907253,6.4348,190.81,190.73,11.40977428]
[1735719907644,6.6199,190.85,190.73,70.60977428]
[1735719907851,20.0,190.82,190.73,70.60977428]
[1735719912486,20.0,190.82,190.73,59.98626653]
[1735719912786,20.0,190.81,190.7,59.98626251]
[1735719913383,20.0,190.81,190.7,70.60977026]
[1735719914677,20.0,190.81,190.7,59.98626251]
[1735719916374,6.4318,190.78,190.7,59.2]
[1735719916578,6.4318,190.78,190.68,60.7132]
[1735719918765,20.0,190.75,190.65,59.98644748]
[1735719918981,20.0,190.75,190.65,59.2]
[1735719920386,20.0,190.71,190.64,1.6005]
[1735719920578,20.0,190.71,190.63,59.2]
[1735719920782,20.0,190.71,190.61,59.2]
[1735719921773,26.4318,190.71,190.61,59.2]
[1735719922498,20.0,190.67,190.57,59.98674373]
[1735719923203,0.4864,190.66,190.56,59.2]
[1735719923492,20.4864,190.66,190.56,59.2]
[1735719929284,20.4864,190.66,190.56,69.82350775]
[1735719931004,6.01389536,190.69,190.58,10.62350775]
[1735719931507,6.01389536,190.69,190.59,10.62350775]
[1735719932310,6.01389536,190.69,190.58,10.62350775]
[1735719932515,6.01389536,190.69,190.59,0.78679036]
[1735719933611,6.01389536,190.69,190.59,59.98679036]
[1735719934995,6.01389536,190.69,190.59,59.2]
[1735719936520,20.0,190.66,190.59,59.2]
[1735719937690,50.386884,190.65,190.59,59.2]
[1735719939212,50.386884,190.65,190.53,59.9869437]
[1735719939414,56.12580229,190.65,190.53,59.2]
[1735719941320,56.12580229,190.65,190.51,59.98706817]
[1735719941321,20.0,190.61,190.51,59.98706817]
[1735719941493,24.263284,190.63,190.51,59.2]
[1735719942710,24.263284,190.63,190.52,0.78713137]
[1735719944588,24.263284,190.63,190.51,59.2]
[1735719944589,20.0,190.6,190.51,59.2]
[1735719944808,20.0,190.59,190.5,1.5064]
[1735719944994,23.776884,190.58,190.5,1.5064]
[1735719945197,23.776884,190.59,190.5,1.5064]
[1735719945922,20.0,190.57,190.5,1.5064]
[1735719946084,20.0,190.57,190.43,13.128]
[1735719946085,20.0,190.53,190.43,60.8495]
[1735719946287,23.776884,190.52,190.43,1.6495]
[1735719947889,20.0,190.49,190.43,1.6495]
[1735719951310,20.0,190.49,190.42,59.2]
[1735719951711,20.0,190.49,190.4,59.98756012]
[1735719951924,20.0,190.49,190.39,71.47300775]
[1735719952594,20.0,190.49,190.39,60.8495]
[1735719952923,20.0,190.49,190.39,61.63716283]
[1735719953293,20.0,190.47,190.39,1.6495]
[1735719956042,20.0,190.47,190.4,0.78763911]
[1735719956734,20.0,190.47,190.39,2.43711709]
[1735719957740,20.0,190.47,190.39,61.63711709]
[1735719961038,20.0,190.47,190.39,72.26062484]
[1735719962035,6.01389536,190.52,190.41,10.62350775]
[1735719962241,6.01389536,190.52,190.41,11.41104356]
[1735719962417,6.01389536,190.52,190.41,0.78753581]
[1735719962418,20.0,190.48,190.41,0.78753581]
[1735719962619,20.0,190.48,190.39,60.8495]
[1735719964125,20.0,190.48,190.39,61.63714247]
[1735719965633,20.0,190.48,190.39,60.8495]
[1735719965838,20.0,190.48,190.4,11.4111826]
[1735719966718,20.0,190.48,190.4,70.6111826]
[1735719967919,20.0,190.49,190.41,10.62350775]
[1735719968125,20.0,190.49,190.42,0.78748487]
[1735719968639,20.0,190.51,190.42,59.98748487]
[1735719976726,20.0,190.51,190.42,59.2]
[1735719978729,20.0,190.49,190.39,61.63702731]
[1735719980355,20.0,190.45,190.39,1.6495]
[1735719981559,20.0,190.48,190.39,1.6495]
[1735719981947,20.0,190.48,190.39,2.43709964]
[1735719984761,20.0,190.48,190.39,61.63709964]
[1735719987564,13.1225,190.52,190.4,10.62350775]
[1735719987867,19.48294536,190.55,190.43,18.83230775]
[1735719988064,20.0,190.52,190.44,0.78742249]
[1735719988944,20.0,190.52,190.44,59.98742249]
[1735719994049,20.0,190.52,190.44,59.2]
[1735719994951,20.0,190.5,190.43,1.6266]
[1735719995663,1.95671297,190.52,190.43,1.6266]
[1735719995866,20.0,190.48,190.43,1.6266]
[1735719998870,20.0,190.44,190.38,8.0764]
[1735719999986,20.0,190.46,190.38,8.0764]
[1735720002777,43.776884,190.47,190.38,8.0764]
[1735720002981,43.776884,190.47,190.38,1.6604]
[1735720003153,20.0,190.42,190.38,1.6604]
[1735720003851,20.0,190.42,190.33,1.6604]
[1735720004060,20.0,190.42,190.33,2.44834119]
[1735720004353,20.0,190.42,190.33,1.6604]
[1735720006568,20.0,190.38,190.33,1.6604]
[1735720012563,20.0,190.38,190.28,60.7032]
[1735720013294,23.776884,190.37,190.28,60.7032]
[1735720013903,20.0,190.34,190.28,1.5032]
[1735720015422,43.776884,190.33,190.28,1.5032]
[1735720015584,43.776884,190.33,190.23,1.6324]
[1735720015786,43.776884,190.33,190.19,59.2]
[1735720015787,20.0,190.28,190.19,59.2]
[1735720016037,20.0,190.28,190.18,81.897879]
[1735720016196,20.0,190.28,190.18,60.8324]
[1735720016390,20.0,190.29,190.18,1.6324]
[1735720016594,43.776884,190.28,190.18,1.6324]
[1735720017512,20.0,190.24,190.18,1.6324]
[1735720018796,23.776884,190.23,190.18,1.6324]
[1735720018995,20.0,190.2,190.18,1.6324]
[1735720019992,20.0,190.2,190.11,7.5769]
[1735720020498,23.776884,190.19,190.11,7.5769]
[1735720021293,20.0,190.16,190.11,1.5161]
[1735720023015,20.0,190.12,190.07,7.5769]
[1735720023324,20.0,190.12,190.07,1.5161]
[1735720023820,23.776884,190.12,190.07,1.5161]
[1735720024022,20.0,190.1,190.07,1.5161]
[1735720025617,20.0,190.1,190.02,7.5769]
[1735720026320,6.36294536,190.13,190.04,10.62350775]
[1735720026695,20.0,190.1,190.04,10.62350775]
[1735720026999,20.0,190.1,190.04,8.12350775]
[1735720027213,19.611,190.2,190.05,11.4126041]
[1735720027403,6.36294536,190.18,190.05,11.4126041]
[1735720027804,23.776884,190.17,190.06,10.62350775]
[1735720028005,20.0,190.14,190.07,10.62350775]
[1735720028214,6.36294536,190.18,190.06,78.17050218]
[1735720028609,23.776884,190.17,190.06,78.17050218]
[1735720029219,20.0,190.14,190.06,78.17050218]
[1735720029435,20.0,190.14,190.06,61.50508931]
[1735720030198,20.0,190.14,190.06,1.5161]
[1735720030420,20.0,190.1,190.06,1.5161]
[1735720033516,20.0,190.08,190.06,1.5161]
[1735720035021,20.0,190.08,190.01,1.5505]
[1735720036736,20.0,190.04,190.01,1.5505]
[1735720037253,20.0,190.04,189.97,1.5505]
[1735720037550,23.776884,190.06,189.97,1.5505]
[1735720037854,20.0,190.03,189.97,1.5505]
[1735720038268,20.0,190.04,189.97,1.5505]
[1735720040019,6.0385,190.11,189.97,1.5505]
[1735720040020,6.0385,190.15,190.02,16.66541287]
[1735720040225,6.0385,190.15,190.03,1.5505]
[1735720040439,23.776884,190.14,190.03,1.5505]
[1735720040839,20.0,190.11,190.03,1.5505]
[1735720041663,39.4355,190.19,190.03,19.00510144]
[1735720041851,2.31284317,190.18,190.03,78.20510144]
[1735720042050,6.36294536,190.18,190.03,78.20510144]
[1735720042572,20.0,190.13,190.03,78.20510144]
[1735720042741,13.1468,190.16,190.03,78.20510144]
[1735720042742,20.0,190.12,190.03,61.53968857]
[1735720042929,20.0,190.12,190.03,78.20510144]
[1735720043130,6.36294536,190.18,190.06,18.21591287]
[1735720043350,6.36294536,190.18,190.06,19.00490423]
[1735720043935,20.0,190.15,190.06,2.33949136]
[1735720045856,20.0,190.15,190.06,61.53949136]
[1735720047470,20.0,190.15,190.07,75.86541287]